[Event "Titled Tuesday Blitz June 27 Early 2023"]
[White "KorolDimitriy75"]
[Black "robertoalejandro10"]
[WhiteElo "2433"]
[BlackElo "2591"]
[Result "0-1"]
[Round "6"]
[TimeControl "180+2"]
[Date "2023.06.27"]
[WhiteClock "0:00:00"]
[BlackClock "0:00:11"]
[Board "125"]

1. d4 {[%clk 0:03:00]}  Nf6 {[%clk 0:02:54]} 2. c4 {[%clk 0:03:00]}  c5 {[%clk 0:02:54]} 3. d5 {[%clk 0:03:00]}  d6 {[%clk 0:02:54]} 4. Nc3 {[%clk 0:03:00]}  g6 {[%clk 0:02:55]} 5. e4 {[%clk 0:02:59]}  Bg7 {[%clk 0:02:56]} 6. h3 {[%clk 0:02:59]}  O-O {[%clk 0:02:56]} 7. Nf3 {[%clk 0:02:59]}  Na6 {[%clk 0:02:57]} 8. Bd3 {[%clk 0:02:57]}  Nc7 {[%clk 0:02:57]} 9. O-O {[%clk 0:02:52]}  Rb8 {[%clk 0:02:57]} 10. a4 {[%clk 0:02:37]}  a6 {[%clk 0:02:57]} 11. a5 {[%clk 0:02:23]}  b5 {[%clk 0:02:56]} 12. axb6 {[%clk 0:02:23]}  Rxb6 {[%clk 0:02:56]} 13. Re1 {[%clk 0:02:22]}  Bd7 {[%clk 0:02:56]} 14. e5 {[%clk 0:02:08]}  Nfe8 {[%clk 0:02:56]} 15. Qc2 {[%clk 0:02:04]}  Qb8 {[%clk 0:02:51]} 16. Ra2 {[%clk 0:01:56]}  e6 {[%clk 0:02:48]} 17. Bf4 {[%clk 0:01:21]}  Qb7 {[%clk 0:02:38]} 18. exd6 {[%clk 0:01:14]}  Nxd6 {[%clk 0:02:39]} 19. Na4 {[%clk 0:01:14]}  Bxa4 {[%clk 0:02:37]} 20. Qxa4 {[%clk 0:01:05]}  exd5 {[%clk 0:02:36]} 21. Qd7 {[%clk 0:00:32]}  Ne6 {[%clk 0:01:54]} 22. Qxb7 {[%clk 0:00:19]}  Nxb7 {[%clk 0:01:55]} 23. Bc1 {[%clk 0:00:11]}  d4 {[%clk 0:01:26]} 24. Be4 {[%clk 0:00:10]}  Nd6 {[%clk 0:01:21]} 25. Bd5 {[%clk 0:00:11]}  Nc7 {[%clk 0:01:15]} 26. Bf4 {[%clk 0:00:11]}  Nxd5 {[%clk 0:01:15]} 27. cxd5 {[%clk 0:00:11]}  c4 {[%clk 0:01:01]} 28. Re7 {[%clk 0:00:11]}  d3 {[%clk 0:00:54]} 29. Rd7 {[%clk 0:00:10]}  Nf5 {[%clk 0:00:53]} 30. d6 {[%clk 0:00:08]}  Nd4 {[%clk 0:00:49]} 31. Nxd4 {[%clk 0:00:08]}  Bxd4 {[%clk 0:00:49]} 32. Bh6 {[%clk 0:00:07]}  Re8 {[%clk 0:00:48]} 33. Re7 {[%clk 0:00:05]}  Rd8 {[%clk 0:00:24]} 34. d7 {[%clk 0:00:05]}  Rbb8 {[%clk 0:00:17]} 35. Rxa6 {[%clk 0:00:04]}  Bxb2 {[%clk 0:00:12]} 36. Rc6 {[%clk 0:00:00]}  c3 {[%clk 0:00:11]} 0-1


[Site "https://www.chess.com"]

[Event "Titled Tuesday Blitz June 27 Early 2023"]
[White "Yurovskykh, Oleksandr"]
[Black "Herman, Daniel"]
[WhiteFideId "14134020"]
[BlackFideId "30935008"]
[WhiteElo "2584"]
[BlackElo "2432"]
[Result "1-0"]
[Round "6"]
[TimeControl "180+2"]
[Date "2023.06.27"]
[WhiteClock "0:00:19"]
[BlackClock "0:00:13"]
[Board "126"]

1. b3 {[%clk 0:03:00]}  d5 {[%clk 0:02:58]} 2. Nf3 {[%clk 0:03:00]}  Bg4 {[%clk 0:02:55]} 3. Ne5 {[%clk 0:03:00]}  Bf5 {[%clk 0:02:55]} 4. Bb2 {[%clk 0:03:00]}  e6 {[%clk 0:02:54]} 5. g3 {[%clk 0:02:59]}  Nf6 {[%clk 0:02:51]} 6. Bg2 {[%clk 0:02:59]}  Nbd7 {[%clk 0:02:50]} 7. Nxd7 {[%clk 0:02:59]}  Qxd7 {[%clk 0:02:50]} 8. O-O {[%clk 0:02:59]}  Be7 {[%clk 0:02:49]} 9. d3 {[%clk 0:03:00]}  O-O {[%clk 0:02:48]} 10. Nd2 {[%clk 0:03:00]}  a5 {[%clk 0:02:45]} 11. a4 {[%clk 0:03:00]}  c6 {[%clk 0:02:42]} 12. e4 {[%clk 0:02:56]}  dxe4 {[%clk 0:02:41]} 13. Nxe4 {[%clk 0:02:57]}  Nd5 {[%clk 0:02:16]} 14. Qe2 {[%clk 0:02:50]}  Rfe8 {[%clk 0:02:03]} 15. Rfe1 {[%clk 0:02:34]}  Bb4 {[%clk 0:01:56]} 16. Rf1 {[%clk 0:02:31]}  e5 {[%clk 0:01:47]} 17. Rac1 {[%clk 0:01:53]}  Bh3 {[%clk 0:01:35]} 18. c3 {[%clk 0:01:40]}  Bf8 {[%clk 0:01:31]} 19. Rcd1 {[%clk 0:01:37]}  Bxg2 {[%clk 0:01:27]} 20. Kxg2 {[%clk 0:01:38]}  f5 {[%clk 0:01:23]} 21. Nd2 {[%clk 0:01:36]}  Qf7 {[%clk 0:01:12]} 22. c4 {[%clk 0:01:17]}  Nb4 {[%clk 0:01:08]} 23. Bxe5 {[%clk 0:01:11]}  Nxd3 {[%clk 0:00:52]} 24. Qxd3 {[%clk 0:01:09]}  Rxe5 {[%clk 0:00:53]} 25. Nf3 {[%clk 0:01:06]}  Ree8 {[%clk 0:00:47]} 26. Qd7 {[%clk 0:01:00]}  Re7 {[%clk 0:00:37]} 27. Qd4 {[%clk 0:00:56]}  Rae8 {[%clk 0:00:37]} 28. Rfe1 {[%clk 0:00:48]}  Rxe1 {[%clk 0:00:36]} 29. Rxe1 {[%clk 0:00:48]}  Rxe1 {[%clk 0:00:36]} 30. Nxe1 {[%clk 0:00:49]}  Qe6 {[%clk 0:00:36]} 31. Nd3 {[%clk 0:00:42]}  g6 {[%clk 0:00:34]} 32. Nf4 {[%clk 0:00:39]}  Qd6 {[%clk 0:00:33]} 33. Qxd6 {[%clk 0:00:36]}  Bxd6 {[%clk 0:00:34]} 34. Nd3 {[%clk 0:00:37]}  Kf7 {[%clk 0:00:31]} 35. h3 {[%clk 0:00:33]}  Ke6 {[%clk 0:00:30]} 36. Kf3 {[%clk 0:00:34]}  h5 {[%clk 0:00:25]} 37. h4 {[%clk 0:00:32]}  Kf6 {[%clk 0:00:15]} 38. Ke3 {[%clk 0:00:30]}  Ke6 {[%clk 0:00:14]} 39. Kd4 {[%clk 0:00:28]}  b6 {[%clk 0:00:14]} 40. c5 {[%clk 0:00:21]}  Bc7 {[%clk 0:00:14]} 41. Kc4 {[%clk 0:00:18]}  Kf6 {[%clk 0:00:13]} 42. cxb6 {[%clk 0:00:16]}  Bxb6 {[%clk 0:00:14]} 43. b4 {[%clk 0:00:17]}  axb4 {[%clk 0:00:12]} 44. Kxb4 {[%clk 0:00:17]}  g5 {[%clk 0:00:11]} 45. a5 {[%clk 0:00:15]}  Ba7 {[%clk 0:00:11]} 46. Kc4 {[%clk 0:00:12]}  gxh4 {[%clk 0:00:09]} 47. gxh4 {[%clk 0:00:13]}  Ke6 {[%clk 0:00:08]} 48. f3 {[%clk 0:00:10]}  Kd6 {[%clk 0:00:08]} 49. Nf4 {[%clk 0:00:09]}  Ke5 {[%clk 0:00:09]} 50. Nxh5 {[%clk 0:00:09]}  Bf2 {[%clk 0:00:07]} 51. a6 {[%clk 0:00:09]}  Ke6 {[%clk 0:00:05]} 52. Nf4+ {[%clk 0:00:09]}  Kf6 {[%clk 0:00:04]} 53. Nd3 {[%clk 0:00:09]}  Ba7 {[%clk 0:00:03]} 54. Nb4 {[%clk 0:00:09]}  Bb6 {[%clk 0:00:01]} 55. Nxc6 {[%clk 0:00:08]}  Kg6 {[%clk 0:00:02]} 56. a7 {[%clk 0:00:05]}  Bxa7 {[%clk 0:00:02]} 57. Nxa7 {[%clk 0:00:06]}  Kh5 {[%clk 0:00:03]} 58. Kd3 {[%clk 0:00:06]}  Kxh4 {[%clk 0:00:04]} 59. Ke2 {[%clk 0:00:07]}  Kg3 {[%clk 0:00:04]} 60. Nb5 {[%clk 0:00:08]}  Kf4 {[%clk 0:00:04]} 61. Nd4 {[%clk 0:00:08]}  Ke5 {[%clk 0:00:05]} 62. Ke3 {[%clk 0:00:08]}  Kf6 {[%clk 0:00:04]} 63. Kf4 {[%clk 0:00:09]}  Kg6 {[%clk 0:00:05]} 64. Nxf5 {[%clk 0:00:09]}  Kf6 {[%clk 0:00:05]} 65. Ne3 {[%clk 0:00:10]}  Kf7 {[%clk 0:00:05]} 66. Ke4 {[%clk 0:00:11]}  Kg7 {[%clk 0:00:05]} 67. f4 {[%clk 0:00:12]}  Kh7 {[%clk 0:00:06]} 68. f5 {[%clk 0:00:13]}  Kh8 {[%clk 0:00:07]} 69. Ke5 {[%clk 0:00:14]}  Kg8 {[%clk 0:00:08]} 70. Ke6 {[%clk 0:00:15]}  Kf8 {[%clk 0:00:08]} 71. f6 {[%clk 0:00:15]}  Ke8 {[%clk 0:00:09]} 72. f7+ {[%clk 0:00:16]}  Kf8 {[%clk 0:00:10]} 73. Nc4 {[%clk 0:00:16]}  Kg7 {[%clk 0:00:10]} 74. Ke7 {[%clk 0:00:16]}  Kh8 {[%clk 0:00:11]} 75. f8=Q+ {[%clk 0:00:17]}  Kh7 {[%clk 0:00:12]} 76. Qf6 {[%clk 0:00:17]}  Kg8 {[%clk 0:00:11]} 77. Qg5+ {[%clk 0:00:18]}  Kh7 {[%clk 0:00:12]} 78. Kf7 {[%clk 0:00:18]}  Kh8 {[%clk 0:00:13]} 79. Qg7# {[%clk 0:00:19]} 1-0


[Site "https://www.chess.com"]

[Event "Titled Tuesday Blitz June 27 Early 2023"]
[White "Itkis, Boris"]
[Black "Pinheiro, Iung Alicio de O."]
[WhiteFideId "1209167"]
[BlackFideId "2104350"]
[WhiteElo "2430"]
[BlackElo "2572"]
[Result "1-0"]
[Round "6"]
[TimeControl "180+2"]
[Date "2023.06.27"]
[WhiteClock "0:00:53"]
[BlackClock "0:00:00"]
[Board "127"]

1. c4 {[%clk 0:03:00]}  e5 {[%clk 0:02:57]} 2. Nf3 {[%clk 0:03:01]}  Nc6 {[%clk 0:02:56]} 3. Nc3 {[%clk 0:03:01]}  Bb4 {[%clk 0:02:45]} 4. Nd5 {[%clk 0:03:01]}  a5 {[%clk 0:02:44]} 5. a3 {[%clk 0:03:00]}  Bc5 {[%clk 0:02:43]} 6. e3 {[%clk 0:03:00]}  d6 {[%clk 0:02:40]} 7. d4 {[%clk 0:03:00]}  Ba7 {[%clk 0:02:39]} 8. dxe5 {[%clk 0:02:58]}  dxe5 {[%clk 0:02:01]} 9. b3 {[%clk 0:02:57]}  Nge7 {[%clk 0:01:57]} 10. Bb2 {[%clk 0:02:56]}  f6 {[%clk 0:01:53]} 11. Qc2 {[%clk 0:02:18]}  Be6 {[%clk 0:01:47]} 12. Rd1 {[%clk 0:02:16]}  Qc8 {[%clk 0:00:57]} 13. Bd3 {[%clk 0:02:10]}  Nxd5 {[%clk 0:00:39]} 14. cxd5 {[%clk 0:02:00]}  Bxd5 {[%clk 0:00:40]} 15. Bxh7 {[%clk 0:01:55]}  Bf7 {[%clk 0:00:38]} 16. Bf5 {[%clk 0:01:51]}  Be6 {[%clk 0:00:36]} 17. Bg6+ {[%clk 0:01:51]}  Bf7 {[%clk 0:00:35]} 18. Bxf7+ {[%clk 0:01:50]}  Kxf7 {[%clk 0:00:36]} 19. Qc4+ {[%clk 0:01:48]}  Qe6 {[%clk 0:00:19]} 20. Rd7+ {[%clk 0:01:47]}  Ne7 {[%clk 0:00:20]} 21. Qxe6+ {[%clk 0:01:39]}  Kxe6 {[%clk 0:00:20]} 22. Rxc7 {[%clk 0:01:39]}  Rhc8 {[%clk 0:00:15]} 23. Rxb7 {[%clk 0:01:38]}  Bc5 {[%clk 0:00:15]} 24. O-O {[%clk 0:01:38]}  Kd6 {[%clk 0:00:14]} 25. Rc1 {[%clk 0:01:34]}  Rc6 {[%clk 0:00:10]} 26. h4 {[%clk 0:01:13]}  Rac8 {[%clk 0:00:10]} 27. h5 {[%clk 0:01:09]}  Nd5 {[%clk 0:00:08]} 28. Rd1 {[%clk 0:01:08]}  Ke6 {[%clk 0:00:05]} 29. Rxg7 {[%clk 0:01:08]}  Be7 {[%clk 0:00:06]} 30. h6 {[%clk 0:01:06]}  Rc2 {[%clk 0:00:06]} 31. Rb1 {[%clk 0:01:00]}  Rh8 {[%clk 0:00:05]} 32. h7 {[%clk 0:01:00]}  Bf8 {[%clk 0:00:01]} 33. Rg8 {[%clk 0:01:00]}  Rxh7 {[%clk 0:00:01]} 34. Rxf8 {[%clk 0:01:00]}  Rhc7 {[%clk 0:00:02]} 35. Re8+ {[%clk 0:00:59]}  Kf7 {[%clk 0:00:02]} 36. Rd8 {[%clk 0:00:58]}  Ke6 {[%clk 0:00:02]} 37. Rd1 {[%clk 0:00:53]}  Nb6 {[%clk 0:00:00]} 38. R8d6+ {[%clk 0:00:53]} 1-0


[Site "https://www.chess.com"]

[Event "Titled Tuesday Blitz June 27 Early 2023"]
[White "Chor, Kevin"]
[Black "BenchGM"]
[WhiteFideId "2090740"]
[WhiteElo "2538"]
[BlackElo "2408"]
[Result "1-0"]
[Round "6"]
[TimeControl "180+2"]
[Date "2023.06.27"]
[WhiteClock "0:01:39"]
[BlackClock "0:01:52"]
[Board "135"]

1. e4 {[%clk 0:02:55]}  e6 {[%clk 0:03:00]} 2. d4 {[%clk 0:02:55]}  d5 {[%clk 0:02:59]} 3. Nd2 {[%clk 0:02:55]}  c5 {[%clk 0:02:58]} 4. exd5 {[%clk 0:02:56]}  Qxd5 {[%clk 0:02:58]} 5. Ngf3 {[%clk 0:02:56]}  cxd4 {[%clk 0:02:58]} 6. Bc4 {[%clk 0:02:57]}  Qd7 {[%clk 0:02:58]} 7. O-O {[%clk 0:02:56]}  Nc6 {[%clk 0:02:56]} 8. Nb3 {[%clk 0:02:57]}  Nf6 {[%clk 0:02:55]} 9. Nfxd4 {[%clk 0:02:56]}  Nxd4 {[%clk 0:02:56]} 10. Nxd4 {[%clk 0:02:57]}  a6 {[%clk 0:02:56]} 11. Be2 {[%clk 0:02:45]}  Bc5 {[%clk 0:02:49]} 12. Nb3 {[%clk 0:02:30]}  Bd6 {[%clk 0:02:49]} 13. c4 {[%clk 0:02:22]}  Qc7 {[%clk 0:02:47]} 14. h3 {[%clk 0:02:19]}  O-O {[%clk 0:02:42]} 15. Bg5 {[%clk 0:02:13]}  Ne4 {[%clk 0:02:38]} 16. Be3 {[%clk 0:02:13]}  Rd8 {[%clk 0:02:33]} 17. Qc2 {[%clk 0:02:13]}  Nc5 {[%clk 0:02:11]} 18. Rfd1 {[%clk 0:02:06]}  Nxb3 {[%clk 0:02:05]} 19. Qxb3 {[%clk 0:02:07]}  Bd7 {[%clk 0:02:00]} 20. Bb6 {[%clk 0:01:55]}  Qc6 {[%clk 0:01:58]} 21. Bf3 {[%clk 0:01:40]}  Qc8 {[%clk 0:01:54]} 22. Bxd8 {[%clk 0:01:39]}  Qxd8 {[%clk 0:01:52]} 23. Rxd6 {[%clk 0:01:39]} 1-0


[Site "https://www.chess.com"]

[Event "Titled Tuesday Blitz June 27 Early 2023"]
[White "Hoffmann, Asa"]
[Black "Belov, Alexei"]
[WhiteFideId "2001470"]
[BlackFideId "4128206"]
[WhiteElo "2401"]
[BlackElo "2534"]
[Result "0-1"]
[Round "6"]
[TimeControl "180+2"]
[Date "2023.06.27"]
[WhiteClock "0:00:53"]
[BlackClock "0:00:59"]
[Board "137"]

1. d4 {[%clk 0:02:25]}  e6 {[%clk 0:02:59]} 2. e4 {[%clk 0:02:22]}  d5 {[%clk 0:02:59]} 3. e5 {[%clk 0:02:22]}  c5 {[%clk 0:02:59]} 4. Nf3 {[%clk 0:02:21]}  cxd4 {[%clk 0:02:56]} 5. Qxd4 {[%clk 0:02:21]}  Nc6 {[%clk 0:02:56]} 6. Qf4 {[%clk 0:02:21]}  f5 {[%clk 0:02:48]} 7. h4 {[%clk 0:02:14]}  Nh6 {[%clk 0:02:44]} 8. Bd3 {[%clk 0:02:12]}  Ng4 {[%clk 0:02:37]} 9. O-O {[%clk 0:02:05]}  Bc5 {[%clk 0:02:36]} 10. c3 {[%clk 0:02:02]}  Qb6 {[%clk 0:02:25]} 11. Qg3 {[%clk 0:01:58]}  Qc7 {[%clk 0:02:12]} 12. Bf4 {[%clk 0:01:55]}  h6 {[%clk 0:02:12]} 13. b4 {[%clk 0:01:51]}  Bb6 {[%clk 0:02:10]} 14. Nbd2 {[%clk 0:01:50]}  Qf7 {[%clk 0:02:02]} 15. Rae1 {[%clk 0:01:42]}  Qh5 {[%clk 0:02:02]} 16. Nb3 {[%clk 0:01:34]}  g5 {[%clk 0:02:00]} 17. Bd2 {[%clk 0:01:32]}  f4 {[%clk 0:01:51]} 18. Qh3 {[%clk 0:01:30]}  Nxf2 {[%clk 0:01:46]} 19. Rxf2 {[%clk 0:01:28]}  g4 {[%clk 0:01:46]} 20. Qh1 {[%clk 0:01:14]}  gxf3 {[%clk 0:01:39]} 21. Bxf4 {[%clk 0:01:07]}  Bxf2+ {[%clk 0:01:05]} 22. Kxf2 {[%clk 0:01:06]}  Bd7 {[%clk 0:01:06]} 23. gxf3 {[%clk 0:01:01]}  O-O-O {[%clk 0:01:06]} 24. Nc5 {[%clk 0:01:01]}  Rdf8 {[%clk 0:01:04]} 25. Bg3 {[%clk 0:00:59]}  Rhg8 {[%clk 0:01:03]} 26. Qh3 {[%clk 0:00:53]}  Qxf3+ {[%clk 0:00:59]} 0-1


[Site "https://www.chess.com"]

[Event "Titled Tuesday Blitz June 27 Early 2023"]
[White "Ljukin, Sergei"]
[Black "Pinto, Daniel"]
[WhiteFideId "14102200"]
[BlackFideId "3303144"]
[WhiteElo "2534"]
[BlackElo "2400"]
[Result "1-0"]
[Round "6"]
[TimeControl "180+2"]
[Date "2023.06.27"]
[WhiteClock "0:00:31"]
[BlackClock "0:00:00"]
[Board "138"]

1. e4 {[%clk 0:03:00]}  e5 {[%clk 0:02:58]} 2. Nf3 {[%clk 0:02:59]}  Nc6 {[%clk 0:02:58]} 3. Bb5 {[%clk 0:02:59]}  Nf6 {[%clk 0:02:58]} 4. Qe2 {[%clk 0:02:59]}  d6 {[%clk 0:02:57]} 5. c3 {[%clk 0:02:59]}  Be7 {[%clk 0:02:56]} 6. O-O {[%clk 0:02:58]}  O-O {[%clk 0:02:55]} 7. d4 {[%clk 0:02:58]}  exd4 {[%clk 0:02:55]} 8. cxd4 {[%clk 0:02:58]}  d5 {[%clk 0:02:45]} 9. e5 {[%clk 0:02:55]}  Ne4 {[%clk 0:02:45]} 10. Nc3 {[%clk 0:02:55]}  Nxc3 {[%clk 0:02:23]} 11. bxc3 {[%clk 0:02:54]}  f6 {[%clk 0:02:18]} 12. h3 {[%clk 0:02:36]}  fxe5 {[%clk 0:02:16]} 13. Nxe5 {[%clk 0:02:21]}  Nxe5 {[%clk 0:02:14]} 14. dxe5 {[%clk 0:02:20]}  Bf5 {[%clk 0:01:51]} 15. Bd3 {[%clk 0:02:12]}  Qd7 {[%clk 0:01:27]} 16. Be3 {[%clk 0:02:05]}  Qe6 {[%clk 0:01:23]} 17. f4 {[%clk 0:02:03]}  c5 {[%clk 0:01:11]} 18. Rad1 {[%clk 0:01:56]}  Rfd8 {[%clk 0:00:41]} 19. Bxf5 {[%clk 0:01:53]}  Qxf5 {[%clk 0:00:42]} 20. g4 {[%clk 0:01:53]}  Qe4 {[%clk 0:00:41]} 21. Qf3 {[%clk 0:01:53]}  Qc4 {[%clk 0:00:31]} 22. f5 {[%clk 0:01:45]}  Qxc3 {[%clk 0:00:23]} 23. Rxd5 {[%clk 0:00:52]}  Rxd5 {[%clk 0:00:19]} 24. Qxd5+ {[%clk 0:00:52]}  Kh8 {[%clk 0:00:20]} 25. Qe4 {[%clk 0:00:47]}  Rd8 {[%clk 0:00:16]} 26. g5 {[%clk 0:00:41]}  Qd3 {[%clk 0:00:15]} 27. Qxd3 {[%clk 0:00:39]}  Rxd3 {[%clk 0:00:16]} 28. Bf4 {[%clk 0:00:37]}  c4 {[%clk 0:00:08]} 29. f6 {[%clk 0:00:35]}  Bc5+ {[%clk 0:00:08]} 30. Kg2 {[%clk 0:00:32]}  Kg8 {[%clk 0:00:08]} 31. e6 {[%clk 0:00:31]}  gxf6 {[%clk 0:00:08]} 32. gxf6 {[%clk 0:00:31]}  Rd2+ {[%clk 0:00:00]} 33. Bxd2 {[%clk 0:00:31]} 1-0


[Site "https://www.chess.com"]

[Event "Titled Tuesday Blitz June 27 Early 2023"]
[White "Mamedov, Edgar"]
[Black "Topalov, Aleksandar"]
[WhiteFideId "13739980"]
[BlackFideId "925659"]
[WhiteElo "2533"]
[BlackElo "2398"]
[Result "1-0"]
[Round "6"]
[TimeControl "180+2"]
[Date "2023.06.27"]
[WhiteClock "0:00:37"]
[BlackClock "0:00:46"]
[Board "139"]

1. d4 {[%clk 0:03:00]}  Nf6 {[%clk 0:02:59]} 2. Bg5 {[%clk 0:02:59]}  g6 {[%clk 0:02:59]} 3. Bxf6 {[%clk 0:02:58]}  exf6 {[%clk 0:02:59]} 4. e3 {[%clk 0:02:59]}  f5 {[%clk 0:03:00]} 5. g3 {[%clk 0:02:58]}  h5 {[%clk 0:03:00]} 6. Nf3 {[%clk 0:02:56]}  d6 {[%clk 0:02:59]} 7. Bg2 {[%clk 0:02:54]}  Nd7 {[%clk 0:02:57]} 8. O-O {[%clk 0:02:53]}  Nf6 {[%clk 0:02:57]} 9. c4 {[%clk 0:02:52]}  c6 {[%clk 0:02:56]} 10. Nc3 {[%clk 0:02:51]}  a5 {[%clk 0:02:56]} 11. Re1 {[%clk 0:02:44]}  Bg7 {[%clk 0:02:55]} 12. a3 {[%clk 0:02:41]}  O-O {[%clk 0:02:54]} 13. b4 {[%clk 0:02:40]}  axb4 {[%clk 0:02:54]} 14. axb4 {[%clk 0:02:41]}  Bd7 {[%clk 0:02:51]} 15. Qb3 {[%clk 0:02:39]}  Qc7 {[%clk 0:02:38]} 16. b5 {[%clk 0:02:32]}  cxb5 {[%clk 0:02:24]} 17. Nxb5 {[%clk 0:02:30]}  Qb6 {[%clk 0:02:23]} 18. Nd2 {[%clk 0:02:20]}  d5 {[%clk 0:02:17]} 19. Rab1 {[%clk 0:02:10]}  Ne4 {[%clk 0:01:55]} 20. Nxe4 {[%clk 0:02:04]}  dxe4 {[%clk 0:01:40]} 21. c5 {[%clk 0:01:59]}  Qc6 {[%clk 0:01:29]} 22. Nd6 {[%clk 0:01:56]}  Ra7 {[%clk 0:01:29]} 23. Rec1 {[%clk 0:01:43]}  Be6 {[%clk 0:01:28]} 24. Qb6 {[%clk 0:01:42]}  Rfa8 {[%clk 0:01:07]} 25. Nxb7 {[%clk 0:01:27]}  Qd5 {[%clk 0:01:02]} 26. Nd6 {[%clk 0:01:18]}  Bf8 {[%clk 0:00:58]} 27. Bf1 {[%clk 0:01:03]}  Bxd6 {[%clk 0:00:57]} 28. Bc4 {[%clk 0:00:47]}  Qxc4 {[%clk 0:00:57]} 29. Rxc4 {[%clk 0:00:46]}  Bxc4 {[%clk 0:00:58]} 30. cxd6 {[%clk 0:00:45]}  Ra1 {[%clk 0:00:57]} 31. d7 {[%clk 0:00:42]}  Bd3 {[%clk 0:00:48]} 32. d8=Q+ {[%clk 0:00:40]}  Kg7 {[%clk 0:00:48]} 33. Qxa8 {[%clk 0:00:38]}  Rxb1+ {[%clk 0:00:46]} 34. Qxb1 {[%clk 0:00:37]} 1-0


[Site "https://www.chess.com"]

[Event "Titled Tuesday Blitz June 27 Early 2023"]
[White "Roberson, Peter T"]
[Black "Szyszylo, Rafal"]
[WhiteFideId "412384"]
[BlackFideId "1109626"]
[WhiteElo "2526"]
[BlackElo "2393"]
[Result "1-0"]
[Round "6"]
[TimeControl "180+2"]
[Date "2023.06.27"]
[WhiteClock "0:00:03"]
[BlackClock "0:00:00"]
[Board "141"]

1. d4 {[%clk 0:03:00]}  d6 {[%clk 0:02:56]} 2. e4 {[%clk 0:02:47]}  Nf6 {[%clk 0:02:55]} 3. Qd3 {[%clk 0:02:46]}  e5 {[%clk 0:02:46]} 4. Be3 {[%clk 0:02:36]}  exd4 {[%clk 0:02:43]} 5. Bxd4 {[%clk 0:02:36]}  Nc6 {[%clk 0:02:43]} 6. Nc3 {[%clk 0:02:35]}  Nxd4 {[%clk 0:02:23]} 7. Qxd4 {[%clk 0:02:35]}  Be7 {[%clk 0:02:20]} 8. O-O-O {[%clk 0:02:35]}  O-O {[%clk 0:02:19]} 9. Kb1 {[%clk 0:02:35]}  Be6 {[%clk 0:02:19]} 10. f4 {[%clk 0:02:20]}  c5 {[%clk 0:01:45]} 11. Qd2 {[%clk 0:02:12]}  b5 {[%clk 0:01:27]} 12. Bxb5 {[%clk 0:02:03]}  Rb8 {[%clk 0:01:21]} 13. f5 {[%clk 0:01:46]}  a6 {[%clk 0:01:16]} 14. fxe6 {[%clk 0:01:31]}  axb5 {[%clk 0:01:15]} 15. exf7+ {[%clk 0:01:32]}  Rxf7 {[%clk 0:01:14]} 16. Nf3 {[%clk 0:01:23]}  b4 {[%clk 0:01:14]} 17. Nd5 {[%clk 0:01:23]}  Nxe4 {[%clk 0:01:11]} 18. Qe3 {[%clk 0:01:17]}  Nf6 {[%clk 0:00:49]} 19. Rhe1 {[%clk 0:01:08]}  Nxd5 {[%clk 0:00:48]} 20. Rxd5 {[%clk 0:01:09]}  Bf6 {[%clk 0:00:43]} 21. Qe6 {[%clk 0:01:07]}  Qe7 {[%clk 0:00:24]} 22. Rxd6 {[%clk 0:00:55]}  Re8 {[%clk 0:00:22]} 23. Qg4 {[%clk 0:00:33]}  Qxd6 {[%clk 0:00:17]} 24. Rxe8+ {[%clk 0:00:32]}  Rf8 {[%clk 0:00:18]} 25. Qc4+ {[%clk 0:00:30]}  Kh8 {[%clk 0:00:13]} 26. Rxf8+ {[%clk 0:00:27]}  Qxf8 {[%clk 0:00:14]} 27. a4 {[%clk 0:00:21]}  bxa3 {[%clk 0:00:14]} 28. bxa3 {[%clk 0:00:22]}  Qd6 {[%clk 0:00:11]} 29. Qd3 {[%clk 0:00:14]}  Qb6+ {[%clk 0:00:11]} 30. Kc1 {[%clk 0:00:14]}  Qb2+ {[%clk 0:00:10]} 31. Kd1 {[%clk 0:00:14]}  h6 {[%clk 0:00:10]} 32. Nd2 {[%clk 0:00:12]}  Qe5 {[%clk 0:00:07]} 33. g3 {[%clk 0:00:07]}  Qh5+ {[%clk 0:00:07]} 34. Qe2 {[%clk 0:00:07]}  Qh3 {[%clk 0:00:05]} 35. Ne4 {[%clk 0:00:06]}  Bd4 {[%clk 0:00:04]} 36. c3 {[%clk 0:00:05]}  Bg1 {[%clk 0:00:04]} 37. a4 {[%clk 0:00:02]}  Bxh2 {[%clk 0:00:04]} 38. a5 {[%clk 0:00:03]}  Bxg3 {[%clk 0:00:00]} 39. Qf3 {[%clk 0:00:03]} 1-0


[Site "https://www.chess.com"]

[Event "Titled Tuesday Blitz June 27 Early 2023"]
[White "Barbot, Pierre"]
[Black "Bruedigam, Martin"]
[WhiteFideId "663727"]
[BlackFideId "24608033"]
[WhiteElo "2383"]
[BlackElo "2523"]
[Result "0-1"]
[Round "6"]
[TimeControl "180+2"]
[Date "2023.06.27"]
[WhiteClock "0:00:00"]
[BlackClock "0:00:46"]
[Board "142"]

1. d4 {[%clk 0:03:00]}  Nf6 {[%clk 0:02:58]} 2. Nf3 {[%clk 0:03:00]}  e6 {[%clk 0:02:58]} 3. Bf4 {[%clk 0:02:58]}  b6 {[%clk 0:02:55]} 4. e3 {[%clk 0:02:54]}  Bb7 {[%clk 0:02:55]} 5. Nbd2 {[%clk 0:02:54]}  Be7 {[%clk 0:02:56]} 6. Bd3 {[%clk 0:02:53]}  d6 {[%clk 0:02:56]} 7. O-O {[%clk 0:02:53]}  Nbd7 {[%clk 0:02:56]} 8. h3 {[%clk 0:02:44]}  Nf8 {[%clk 0:02:55]} 9. c3 {[%clk 0:02:34]}  Ng6 {[%clk 0:02:55]} 10. Bh2 {[%clk 0:02:34]}  O-O {[%clk 0:02:55]} 11. e4 {[%clk 0:02:34]}  c5 {[%clk 0:02:55]} 12. Qe2 {[%clk 0:02:29]}  a6 {[%clk 0:02:53]} 13. a4 {[%clk 0:02:23]}  Qc7 {[%clk 0:02:45]} 14. e5 {[%clk 0:01:41]}  Nd5 {[%clk 0:02:35]} 15. g3 {[%clk 0:00:56]}  cxd4 {[%clk 0:02:28]} 16. cxd4 {[%clk 0:00:54]}  dxe5 {[%clk 0:02:28]} 17. Nxe5 {[%clk 0:00:46]}  Rfc8 {[%clk 0:02:10]} 18. f4 {[%clk 0:00:26]}  Bb4 {[%clk 0:02:04]} 19. Rae1 {[%clk 0:00:24]}  Bxd2 {[%clk 0:02:02]} 20. Qxd2 {[%clk 0:00:24]}  b5 {[%clk 0:01:51]} 21. a5 {[%clk 0:00:20]}  Nxe5 {[%clk 0:01:38]} 22. fxe5 {[%clk 0:00:20]}  Ne7 {[%clk 0:01:27]} 23. Qg5 {[%clk 0:00:18]}  Nf5 {[%clk 0:01:11]} 24. g4 {[%clk 0:00:04]}  Nxd4 {[%clk 0:01:08]} 25. Qh5 {[%clk 0:00:02]}  g6 {[%clk 0:01:06]} 26. Qh6 {[%clk 0:00:02]}  Qc5 {[%clk 0:00:53]} 27. Rf6 {[%clk 0:00:00]}  Nf5+ {[%clk 0:00:46]} 0-1


[Site "https://www.chess.com"]